lending/lending_fUSD_20250425
["ID","MTS","AMOUNT","RATE_DAILY","PERIOD"]
[358921206,1745545500910,-840.45,0.00051232,30]
[358921207,1745545500955,-535.24,0.00051232,30]
[358921208,1745545500997,-500.0,0.00051232,30]
[358921209,1745545501041,-1206.69,0.00051232,30]
[358921210,1745545501082,-530.1,0.00051232,30]
[358921211,1745545501138,-1653.86,0.00051232,30]
[358921212,1745545501183,-1755.79,0.00051232,30]
[358921213,1745545501229,-500.0,0.00051232,30]
[358921214,1745545501272,-780.2,0.00051232,30]
[358921215,1745545501630,-606.95,0.00051232,30]
[358921216,1745545501676,-1333.8,0.00051232,30]
[358921217,1745545501720,-574.35,0.00051232,30]
[358921218,1745545501765,-782.478522,0.00051232,30]
[358921219,1745545501806,-500.0,0.00051232,30]
[358921220,1745545501848,-500.0,0.00051232,30]
[358921221,1745545501890,-500.0,0.00051232,30]
[358921222,1745545501935,-583.66,0.00051232,120]
[358921223,1745545501978,-1414.99,0.00051232,30]
[358921224,1745545502021,-1072.46,0.00051232,30]
[358921225,1745545502063,-500.0,0.00051232,30]
[358921226,1745545502106,-1021.91,0.00051232,30]
[358921227,1745545502150,-500.0,0.00051232,30]
[358921228,1745545502197,-1937.76,0.00051232,30]
[358921229,1745545502242,-500.0,0.00051232,30]
[358921230,1745545502289,-500.0,0.00051232,30]
[358921231,1745545502337,-500.0,0.00051232,30]
[358921232,1745545502379,-500.0,0.00051232,30]
[358921233,1745545502421,-500.0,0.00051232,30]
[358921234,1745545502464,-1156.26,0.00051232,30]
[358921235,1745545502508,-500.0,0.00051232,30]
[358921236,1745545502550,-759.106322,0.00051232,30]
[358921237,1745545502592,-821.73,0.00051232,30]
[358921238,1745545502635,-809.65,0.00051232,30]
[358921239,1745545502678,-500.0,0.00051232,30]
[358921240,1745545502720,-500.0,0.00051232,30]
[358921241,1745545502763,-1231.82,0.00051232,30]
[358921242,1745545502805,-500.0,0.00051232,30]
[358921243,1745545502846,-1214.56,0.00051232,30]
[358921244,1745545502886,-500.0,0.00051232,30]
[358921245,1745545502927,-2849.2,0.00051232,30]
[358921246,1745545502969,-500.0,0.00051232,30]
[358921247,1745545503010,-3096.48,0.00051232,30]
[358921248,1745545503051,-6517.27,0.00051232,30]
[358921249,1745545503098,-1964.64,0.00051232,30]
[358921250,1745545503148,-528.4,0.00051232,30]
[358921251,1745545503196,-500.0,0.00051232,30]
[358921252,1745545503246,-5076.34,0.00051232,30]
[358921253,1745545503296,-3017.9,0.00051232,30]
[358921254,1745545503346,-500.0,0.00051232,30]
[358921255,1745545503394,-1363.63,0.00051232,30]
[358921256,1745545503445,-1000000.0,0.0005125,120]
[358921257,1745545503494,-151.0,0.0005125,120]
[358921258,1745545503549,-151.0,0.0005125,120]
[358921259,1745545503599,-241.300835,0.0005125,120]
[358921260,1745545503652,-151.0,0.0005125,120]
[358921261,1745545503706,-151.0,0.0005125,120]
[358921262,1745545503759,-206.896493,0.0005125,120]
[358921263,1745545503811,-151.0,0.0005125,120]
[358921264,1745545503863,-206.896493,0.0005125,120]
[358921265,1745545503913,-642.502757,0.0005125,120]
[358921266,1745545503967,-642.502757,0.0005125,120]
[358921267,1745545504017,-2110.0,0.00051315,30]
[358921268,1745545504068,-150.0,0.00051485,120]
[358921269,1745545504120,-1000000.0,0.000515,120]
[358921270,1745545504169,-28134.8939099,0.000515,30]
[358921271,1745545504219,-151.0,0.000515,120]
[358921272,1745545504269,-151.0,0.000515,120]
[358921273,1745545504318,-151.0,0.000515,120]
[358921274,1745545504371,-151.0,0.000515,120]
[358921275,1745545504422,-206.896493,0.000515,120]
[358921276,1745545504473,-206.896493,0.000515,120]
[358921277,1745545504523,-151.0,0.000515,120]
[358921278,1745545504573,-642.502757,0.000515,120]
[358921279,1745545504623,-642.502757,0.000515,120]
[358921280,1745545504674,-500.0,0.00051506,30]
[358921281,1745545504722,-500.0,0.00051506,30]
[358921282,1745545504770,-500.0,0.00051506,30]
[358921283,1745545504820,-542.53,0.00051506,30]
[358921284,1745545504869,-500.0,0.00051506,30]
[358921285,1745545504918,-500.0,0.00051506,30]
[358921286,1745545504971,-500.0,0.00051506,30]
[358921287,1745545505019,-500.0,0.00051506,30]
[358921288,1745545505068,-994.55,0.00051506,30]
[358921289,1745545505116,-500.0,0.00051506,30]
[358921290,1745545505164,-500.0,0.00051506,30]
[358921291,1745545505213,-546.08,0.00051506,30]
[358921292,1745545505260,-500.0,0.00051506,30]
[358921293,1745545505307,-500.0,0.00051506,30]
[358921294,1745545505355,-500.0,0.00051506,30]
[358921295,1745545505404,-500.0,0.00051506,30]
[358921296,1745545505453,-500.0,0.00051506,30]
[358921297,1745545505502,-566.72,0.00051506,30]
[358921298,1745545505551,-500.0,0.00051506,30]
[358921299,1745545505600,-1008.08,0.00051506,30]
[358921300,1745545505650,-500.0,0.00051506,30]
[358921301,1745545505698,-528.27,0.00051506,30]
[358921302,1745545505748,-500.0,0.00051506,30]
[358921303,1745545505799,-694.5,0.00051506,30]
[358921304,1745545505847,-858.57,0.00051506,30]
[358921305,1745545505898,-727.33,0.00051506,30]
[358921306,1745545505945,-500.0,0.00051506,30]
[358921307,1745545505993,-500.0,0.00051506,30]
[358921308,1745545506041,-500.0,0.00051506,30]
[358921309,1745545506090,-500.0,0.00051506,30]
[358921310,1745545506138,-500.0,0.00051506,30]
[358921311,1745545506186,-500.0,0.00051506,30]
[358921312,1745545506234,-522.13,0.00051506,30]
[358921313,1745545506281,-500.0,0.00051506,30]
[358921314,1745545506329,-500.0,0.00051506,30]
[358921315,1745545506377,-500.0,0.00051506,30]
[358921316,1745545506424,-879.02,0.00051506,30]
[358921317,1745545506472,-500.0,0.00051506,30]
[358921318,1745545506518,-576.26067431,0.00051506,30]
[358921319,1745545506764,-765.14,0.00051506,30]
[358921320,1745545506812,-500.0,0.00051506,30]
[358921321,1745545506860,-500.0,0.00051506,30]
[358921322,1745545506905,-500.0,0.00051506,30]
[358921323,1745545506954,-500.0,0.00051506,30]
[358921324,1745545507003,-500.0,0.00051506,30]
[358921325,1745545507055,-415.51,0.00051506,30]
[358921326,1745545507101,-500.0,0.00051506,30]
[358921327,1745545507151,-500.0,0.00051506,30]
[358921328,1745545507199,-500.0,0.00051506,30]
[358921329,1745545507246,-500.0,0.00051506,30]
[358921330,1745545507293,-500.0,0.00051506,30]
[358921331,1745545507339,-500.0,0.00051506,30]
[358921332,1745545507388,-500.0,0.00051506,30]
[358921333,1745545507435,-1012.63,0.00051506,30]
[358921334,1745545507480,-500.0,0.00051506,30]
[358921335,1745545507524,-500.0,0.00051506,30]
[358921336,1745545507570,-500.0,0.00051506,30]
[358921337,1745545507616,-500.0,0.00051506,30]
[358921338,1745545507662,-500.0,0.00051506,30]
[358921339,1745545507709,-500.0,0.00051506,30]
[358921340,1745545507757,-567.96155714,0.00051506,30]
[358921341,1745545507805,-500.0,0.00051506,30]
[358921342,1745545507853,-515.47,0.00051506,30]
[358921343,1745545507901,-610.47,0.00051506,30]
[358921344,1745545507947,-500.0,0.00051506,30]
[358921345,1745545507992,-500.0,0.00051506,30]
[358921346,1745545508037,-500.0,0.00051506,30]
[358921347,1745545508083,-350.0,0.00051506,30]
[358921348,1745545508131,-500.0,0.00051506,30]
[358921349,1745545508178,-342.77874764,0.00051506,30]
[358921350,1745545508223,-500.0,0.00051506,30]
[358921351,1745545508271,-500.0,0.00051506,30]
[358921352,1745545508312,-895.82,0.00051506,30]
[358921353,1745545508356,-500.0,0.00051506,30]
[358921354,1745545508402,-205.9155772,0.00051506,30]
[358921355,1745545508450,-644.62,0.00051506,30]
[358921356,1745545508496,-1008.41,0.00051506,30]
[358921357,1745545508541,-1065.37,0.00051506,30]
[358921358,1745545508589,-500.0,0.00051506,30]
[358921359,1745545508636,-500.0,0.00051506,30]
[358921360,1745545508682,-500.0,0.00051506,30]
[358921361,1745545508729,-500.0,0.00051506,30]
[358921362,1745545508776,-814.96,0.00051506,30]
[358921363,1745545508823,-500.0,0.00051506,30]
[358921364,1745545508869,-500.0,0.00051506,30]
[358921365,1745545508915,-574.59329507,0.00051506,30]
[358921366,1745545508960,-505.96,0.00051506,30]
[358921367,1745545509010,-831.63,0.00051506,30]
[358921368,1745545509056,-500.0,0.00051506,30]
[358921369,1745545509102,-500.0,0.00051506,30]
[358921370,1745545509150,-500.0,0.00051506,30]
[358921371,1745545509198,-641.42,0.00051506,30]
[358921372,1745545509244,-500.0,0.00051506,30]
[358921373,1745545509292,-661.96,0.00051506,30]
[358921374,1745545509342,-500.0,0.00051506,30]
[358921375,1745545509388,-498.60319093,0.00051506,30]
[358921376,1745545509434,-612.26,0.00051506,30]
[358921377,1745545509483,-500.0,0.00051506,30]
[358921378,1745545509531,-653.33,0.00051506,30]
[358921379,1745545509577,-596.77,0.00051506,30]
[358921380,1745545509623,-500.0,0.00051506,30]
[358921381,1745545509670,-1112.33,0.00051506,30]
[358921382,1745545509715,-841.68,0.00051506,30]
[358921383,1745545509760,-500.0,0.00051506,30]
[358921384,1745545509805,-500.0,0.00051506,30]
[358921385,1745545509851,-500.0,0.00051506,30]
[358921386,1745545509897,-1808.75,0.00051506,30]
[358921387,1745545509943,-500.0,0.00051506,30]
[358921388,1745545509988,-280.9677065,0.00051506,30]
[358921389,1745545510033,-672.15,0.00051506,30]
[358921390,1745545510080,-893.18,0.00051506,30]
[358921391,1745545510126,-500.0,0.00051506,30]
[358921392,1745545510171,-500.0,0.00051506,30]
[358921393,1745545510216,-500.0,0.00051506,30]
[358921394,1745545510263,-500.0,0.00051506,30]
[358921395,1745545510312,-500.0,0.00051506,30]
[358921396,1745545510360,-500.0,0.00051506,30]
[358921397,1745545510406,-500.0,0.00051506,30]
[358921398,1745545510453,-1073.32,0.00051506,30]
[358921399,1745545510502,-500.0,0.00051506,30]
[358921400,1745545510548,-557.66,0.00051506,30]
[358921401,1745545510594,-307.85131925,0.00051506,30]
[358921402,1745545510640,-500.0,0.00051506,30]
[358921403,1745545510685,-500.0,0.00051506,30]
[358921404,1745545510731,-2016.33,0.00051506,30]
[358921405,1745545510777,-500.0,0.00051506,30]
[358921406,1745545510823,-500.0,0.00051506,30]
[358921407,1745545510870,-500.0,0.00051506,30]
[358921408,1745545510918,-1286.01,0.00051506,30]
[358921409,1745545510969,-500.0,0.00051506,30]
[358921410,1745545511018,-500.0,0.00051506,30]
[358921411,1745545511065,-500.0,0.00051506,30]
[358921412,1745545511112,-500.0,0.00051506,30]
[358921413,1745545511160,-664.11,0.00051506,30]
[358921414,1745545511207,-500.0,0.00051506,30]
[358921415,1745545511253,-500.0,0.00051506,30]
[358921416,1745545511302,-796.66,0.00051506,30]
[358921417,1745545511349,-500.0,0.00051506,30]
[358921418,1745545511396,-500.0,0.00051506,30]
[358921419,1745545511445,-500.0,0.00051506,30]
[358921420,1745545511493,-533.3,0.00051506,30]
[358921421,1745545511541,-529.7159933,0.00051506,30]
[358921422,1745545511590,-500.0,0.00051506,30]
[358921423,1745545511809,-500.0,0.00051506,30]
[358921424,1745545511859,-500.0,0.00051506,30]
[358921425,1745545511905,-500.0,0.00051506,30]
[358921426,1745545511953,-500.0,0.00051506,30]
[358921427,1745545512000,-471.88366777,0.00051506,30]
[358921428,1745545512047,-300.0,0.00051506,30]
[358921429,1745545512097,-500.0,0.00051506,30]
[358921430,1745545512144,-1527.68,0.00051506,30]
[358921431,1745545512190,-164.62097301,0.00051506,30]
[358921432,1745545512236,-500.0,0.00051506,30]
[358921433,1745545512282,-500.0,0.00051506,30]
[358921434,1745545512326,-500.0,0.00051506,30]
[358921435,1745545512372,-1098.37,0.00051506,30]
[358921436,1745545512418,-541.28,0.00051506,30]
[358921437,1745545512464,-1116.42,0.00051506,30]
[358921438,1745545512510,-546.69,0.00051506,30]
[358921439,1745545512559,-500.0,0.00051506,30]
[358921440,1745545512607,-500.0,0.00051506,30]
[358921441,1745545512655,-500.0,0.00051506,30]
[358921442,1745545512704,-500.0,0.00051506,30]
[358921443,1745545512753,-500.0,0.00051506,30]
[358921444,1745545512803,-500.0,0.00051506,30]
[358921445,1745545512852,-500.0,0.00051506,30]
[358921446,1745545512899,-1901.47,0.00051506,30]
[358921447,1745545512947,-500.0,0.00051506,30]
[358921448,1745545512996,-416.62718876,0.00051506,30]
[358921449,1745545513046,-1757.16,0.00051506,30]
[358921450,1745545513094,-500.0,0.00051506,30]
[358921451,1745545513142,-1673.18,0.00051506,30]
[358921452,1745545513191,-797.02,0.00051506,30]
[358921453,1745545513239,-1168.97,0.00051506,30]
[358921454,1745545513285,-1038.01,0.00051506,30]
[358921455,1745545513336,-1114.87,0.00051506,30]
[358921456,1745545513384,-690.29,0.00051506,30]
[358921457,1745545513432,-500.0,0.00051506,30]
[358921458,1745545513480,-500.0,0.00051506,30]
[358921459,1745545513531,-717.48,0.00051506,30]
[358921460,1745545513581,-1062.7,0.00051506,30]
[358921461,1745545513632,-1633.77,0.00051506,30]
[358921462,1745545513684,-1248.52,0.00051506,30]
[358921463,1745545513734,-633.48,0.00051506,30]
[358921464,1745545513785,-2641.69,0.00051506,30]
[358921465,1745545513836,-500.0,0.00051506,30]
[358921466,1745545513888,-2881.29,0.00051506,30]
[358921467,1745545513940,-500.0,0.00051506,30]
[358921468,1745545513988,-500.0,0.00051506,30]
[358921469,1745545514037,-809.25,0.00051506,30]
[358921470,1745545514086,-975.25,0.00051506,30]
[358921471,1745545514134,-10337.63,0.00051506,30]
[358921472,1745545514183,-3067.16,0.00051506,30]
[358921473,1745545514230,-1318.12,0.00051506,30]
[358921474,1745545514276,-507.43,0.00051506,30]
[358921475,1745545514322,-570.23,0.00051506,30]
[358921476,1745545514372,-627.41,0.00051506,30]
[358921477,1745545514420,-500.0,0.00051506,30]
[358921478,1745545514465,-500.0,0.00051506,30]
[358921479,1745545514513,-679.54,0.00051506,30]
[358921480,1745545514561,-500.0,0.00051506,30]
[358921481,1745545514610,-1252.46,0.00051506,30]
[358921482,1745545514659,-575.58,0.00051506,30]
[358921483,1745545514709,-2182.67,0.00051506,30]
[358921484,1745545514758,-521.29,0.00051506,30]
[358921485,1745545514808,-1867.96,0.00051506,30]
[358921486,1745545514856,-1074.64,0.00051506,30]
[358921487,1745545514904,-3545.51,0.00051506,30]
[358921488,1745545514953,-728.08,0.00051506,30]
[358921489,1745545515003,-672.38,0.00051506,30]
[358921490,1745545515055,-500.0,0.00051506,30]
[358921491,1745545515104,-3286.78,0.00051506,30]
[358921492,1745545515154,-500.0,0.00051506,30]
[358921493,1745545515202,-1180.4,0.00051506,30]
[358921494,1745545515249,-500.0,0.00051506,30]
[358921495,1745545515296,-500.0,0.00051506,30]
[358921496,1745545515345,-502.18,0.00051506,30]
[358921497,1745545515396,-3075.34,0.00051506,30]
[358921498,1745545515444,-1837.7,0.00051506,30]
[358921499,1745545515494,-3115.11,0.00051506,30]
[358921500,1745545515543,-1656.27,0.00051506,30]
[358921501,1745545515592,-1741.99,0.00051506,30]
[358921502,1745545515642,-919.24,0.00051506,30]
[358921503,1745545515691,-2447.99,0.00051506,30]
[358921504,1745545515743,-500.0,0.00051506,30]
[358921505,1745545515794,-8924.7,0.00051506,30]
[358921506,1745545515846,-1868.99,0.00051506,30]
[358921507,1745545515897,-770.76,0.00051506,30]
[358921508,1745545515947,-818.8,0.00051506,30]
[358921509,1745545515997,-500.0,0.00051506,30]
[358921510,1745545516045,-1584.41,0.00051506,30]
[358921511,1745545516093,-1480.64,0.00051506,30]
[358921512,1745545516144,-572.56,0.00051506,30]
[358921513,1745545516193,-715.9,0.00051506,30]
[358921514,1745545516244,-655.98,0.00051506,30]
[358921515,1745545516294,-500.0,0.00051506,30]
[358921516,1745545516344,-786.19,0.00051506,30]
[358921517,1745545516393,-500.0,0.00051506,30]
[358921518,1745545516442,-733.82,0.00051506,30]
[358921519,1745545516493,-760.58,0.00051506,30]
[358921520,1745545516542,-1510.41,0.00051506,30]
[358921521,1745545516592,-825.68,0.00051506,30]
[358921522,1745545516642,-574.85144626,0.00051506,30]
[358921523,1745545516692,-1091.92,0.00051506,30]
[358921524,1745545516741,-500.0,0.00051506,30]
[358921525,1745545516790,-500.0,0.00051506,30]
[358921526,1745545516841,-3345.59,0.00051506,30]
[358921527,1745545517062,-500.0,0.00051506,30]
[358921528,1745545517112,-964.01,0.00051506,30]
[358921529,1745545517162,-579.02,0.00051506,30]
[358921530,1745545517211,-500.0,0.00051506,30]
[358921531,1745545517259,-3181.51,0.00051506,30]
[358921532,1745545517308,-1127.53,0.00051506,30]
[358921533,1745545517356,-1405.73,0.00051506,30]
[358921534,1745545517404,-918.96,0.00051506,30]
[358921535,1745545517451,-970.8,0.00051506,30]
[358921536,1745545517497,-1253.7,0.00051506,30]
[358921537,1745545517543,-1119.69,0.00051506,30]
[358921538,1745545517593,-500.0,0.00051506,30]
[358921539,1745545517643,-616.95,0.00051506,30]
[358921540,1745545517692,-2204.65,0.00051506,30]
[358921541,1745545517740,-1770.63,0.00051506,30]
[358921542,1745545517795,-500.0,0.00051506,30]
[358921543,1745545517843,-735.34,0.00051506,30]
[358921544,1745545517891,-845.57,0.00051506,30]
[358921545,1745545517941,-771.61,0.00051506,30]
[358921546,1745545517990,-506.82,0.00051506,30]
[358921547,1745545518040,-797.78,0.00051506,30]
[358921548,1745545518091,-661.15,0.00051506,30]
[358921549,1745545518142,-500.0,0.00051506,30]
[358921550,1745545518195,-1431.22,0.00051506,30]
[358921551,1745545518244,-899.41,0.00051506,30]
[358921552,1745545518295,-1145.2,0.00051506,30]
[358921553,1745545518346,-823.48,0.00051506,30]
[358921554,1745545518399,-1617.03,0.00051506,30]
[358921555,1745545518450,-500.0,0.00051506,30]
[358921556,1745545518502,-680.92,0.00051506,30]
[358921557,1745545518553,-511.66,0.00051506,30]
[358921558,1745545518607,-2134.81,0.00051506,30]
[358921559,1745545518659,-503.98,0.00051506,30]
[358921560,1745545518712,-949.81,0.00051506,30]
[358921561,1745545518765,-1317.65,0.00051506,30]
[358921562,1745545518818,-520.85,0.00051506,30]
[358921563,1745545518870,-1006.04,0.00051506,30]
[358921564,1745545518919,-500.0,0.00051506,30]
[358921565,1745545518968,-34592.57,0.00051506,30]
[358921566,1745545519020,-1128.15,0.00051506,30]
[358921567,1745545519069,-742.75,0.00051506,30]
[358921568,1745545519121,-500.0,0.00051506,30]
[358921569,1745545519172,-500.0,0.00051506,30]
[358921570,1745545519223,-500.0,0.00051506,30]
[358921571,1745545519275,-581.2,0.00051506,30]
[358921572,1745545519329,-1846.29,0.00051506,30]
[358921573,1745545519380,-748.35,0.00051506,30]
[358921574,1745545519430,-1159.23,0.00051506,30]
[358921575,1745545519480,-500.0,0.00051506,30]
[358921576,1745545519528,-1415.98,0.00051506,30]
[358921577,1745545519577,-17345.41,0.00051506,30]
[358921578,1745545519627,-945.17,0.00051506,30]
[358921579,1745545519678,-500.0,0.00051506,30]
[358921580,1745545519727,-628.22,0.00051506,30]
[358921581,1745545519776,-601.01,0.00051506,30]
[358921582,1745545519827,-521.14,0.00051506,30]
[358921583,1745545519878,-500.0,0.00051506,30]
[358921584,1745545519931,-909.31,0.00051506,30]
[358921585,1745545519981,-1556.81,0.00051506,30]
[358921586,1745545520030,-616.37665767,0.00051506,30]
[358921587,1745545520082,-1076.02,0.00051506,30]
[358921588,1745545520131,-551.43,0.00051506,30]
[358921589,1745545520181,-560.99,0.00051506,30]
[358921590,1745545520231,-500.0,0.00051506,30]
[358921591,1745545520280,-743.83,0.00051506,30]
[358921592,1745545520331,-716.88,0.00051506,30]
[358921593,1745545520381,-500.0,0.00051506,30]
[358921594,1745545520430,-1387.31153177,0.00051506,30]
[358921595,1745545573550,1022.28254119,0.00018,2]
[358921596,1745545622324,2400.0,0.000199,7]
[358921597,1745545658088,171.75,0.00017141,2]
[358921598,1745545693977,-276.842,0.000196,2]
[358921599,1745545694003,-200.0,0.00019606,2]
[358921600,1745545694025,-200.0,0.00019612,2]
[358921601,1745545694049,-458.36,0.00019648,2]
[358921602,1745545694071,-200.0,0.00019698,2]
[358921603,1745545694099,-300.0,0.00019898,2]
[358921604,1745545694122,-1200.0,0.00019899,2]
[358921605,1745545694146,-500.0,0.00019899,2]
[358921606,1745545694170,-500.0,0.00019899,2]
[358921607,1745545694195,-500.0,0.00019899,2]
[358921608,1745545694219,-500.0,0.00019899,2]
[358921609,1745545694245,-500.0,0.00019899,2]
[358921610,1745545694266,-500.0,0.00019899,2]
[358921611,1745545694290,-500.0,0.00019899,2]
[358921612,1745545694312,-500.0,0.00019899,2]
[358921613,1745545694335,-164.798,0.00019899,2]
[358921618,1745545748240,-1995.83,0.00041095,120]
[358921619,1745545748284,-169.583063,0.00041096,30]
[358921620,1745545748328,-506.070882,0.00041096,30]
[358921621,1745545748371,-506.070882,0.00041096,30]
[358921622,1745545748415,-506.070882,0.00041096,30]
[358921623,1745545748459,-506.070882,0.00041096,30]
[358921624,1745545748500,-506.070882,0.00041096,30]
[358921625,1745545748543,-506.070882,0.00041096,30]
[358921626,1745545748585,-506.070882,0.00041096,30]
[358921627,1745545748627,-506.070882,0.00041096,30]
[358921628,1745545748669,-506.070882,0.00041096,30]
[358921629,1745545748713,-506.070882,0.00041096,30]
[358921630,1745545748755,-506.070882,0.00041096,30]
[358921631,1745545748800,-506.070882,0.00041096,30]
[358921632,1745545748845,-506.070882,0.00041096,30]
[358921633,1745545748889,-506.070882,0.00041096,30]
[358921634,1745545748931,-506.070882,0.00041096,30]
[358921635,1745545748971,-506.070882,0.00041096,30]
[358921636,1745545749011,-506.070882,0.00041096,30]
[358921637,1745545749057,-506.070882,0.00041096,30]
[358921638,1745545749097,-506.070882,0.00041096,30]
[358921639,1745545749143,-506.070882,0.00041096,30]
[358921640,1745545749188,-506.070882,0.00041096,30]
[358921641,1745545749233,-506.070882,0.00041096,30]
[358921642,1745545749276,-506.070882,0.00041096,30]
[358921643,1745545749322,-506.070882,0.00041096,30]
[358921644,1745545749364,-166.307199,0.00041096,30]
[358921645,1745545749408,-164.419117,0.00041096,30]
[358921646,1745545749452,-4033.64673,0.00041096,30]
[358921647,1745545749496,-4033.64673,0.00041096,30]
[358921648,1745545749540,-4033.64673,0.00041096,30]
[358921649,1745545749582,-4033.64673,0.00041096,30]
[358921650,1745545749625,-4033.64673,0.00041096,30]
[358921651,1745545749666,-4033.64673,0.00041096,30]
[358921652,1745545749709,-4033.64673,0.00041096,30]
[358921653,1745545749750,-4033.64673,0.00041096,30]
[358921654,1745545749792,-4033.64673,0.00041096,30]
[358921655,1745545749834,-4033.64673,0.00041096,30]
[358921656,1745545749875,-4033.64673,0.00041096,30]
[358921657,1745545749916,-4033.64673,0.00041096,30]
[358921658,1745545749957,-4033.64673,0.00041096,30]
[358921659,1745545749999,-4033.64673,0.00041096,30]
[358921660,1745545750041,-4033.64673,0.00041096,30]
[358921661,1745545750082,-4033.64673,0.00041096,30]
[358921662,1745545750125,-4033.64673,0.00041096,30]
[358921663,1745545750164,-4033.64673,0.00041096,30]
[358921664,1745545750204,-4033.64673,0.00041096,30]
[358921665,1745545750243,-4033.64673,0.00041096,30]
[358921666,1745545750282,-4033.64673,0.00041096,30]
[358921667,1745545750321,-4033.64673,0.00041096,30]
[358921668,1745545750362,-4033.64673,0.00041096,30]
[358921669,1745545750402,-4033.64673,0.00041096,30]
[358921670,1745545750444,-521.652348,0.00041096,30]
[358921671,1745545750486,-521.652348,0.00041096,30]
[358921672,1745545750530,-521.652348,0.00041096,30]
[358921673,1745545750574,-521.652348,0.00041096,30]
[358921674,1745545750619,-521.652348,0.00041096,30]
[358921675,1745545750660,-521.652348,0.00041096,30]
[358921676,1745545750699,-521.652348,0.00041096,30]
[358921677,1745545750738,-521.652348,0.00041096,30]
[358921678,1745545750778,-521.652348,0.00041096,30]
[358921679,1745545750822,-521.652348,0.00041096,30]
[358921680,1745545750864,-521.652348,0.00041096,30]
[358921681,1745545750905,-521.652348,0.00041096,30]
[358921682,1745545750946,-521.652348,0.00041096,30]
[358921683,1745545750985,-521.652348,0.00041096,30]
[358921684,1745545751025,-521.652348,0.00041096,30]
[358921685,1745545751067,-521.652348,0.00041096,30]
[358921686,1745545751109,-521.652348,0.00041096,30]
[358921687,1745545751149,-521.652348,0.00041096,30]
[358921688,1745545751190,-521.652348,0.00041096,30]
[358921689,1745545751228,-521.652348,0.00041096,30]
[358921690,1745545751266,-521.652348,0.00041096,30]
[358921691,1745545751305,-521.652348,0.00041096,30]
[358921692,1745545751344,-521.652348,0.00041096,30]
[358921693,1745545751381,-521.652348,0.00041096,30]
[358921694,1745545751420,-1995.83,0.00042465,120]
[358921695,1745545751474,-279.77,0.000436,120]
[358921696,1745545751710,-1995.83,0.00043835,120]
[358921697,1745545751756,-789.1155,0.00043888,30]
[358921698,1745545751800,-200.0,0.00044,73]
[358921699,1745545751841,-2000.0,0.00044657,120]
[358921700,1745545751880,-337.96295394,0.00044657,120]
[358921701,1745545751918,-200.0,0.00045,76]
[358921702,1745545751957,-286.0,0.00045,90]
[358921703,1745545751998,-1995.83,0.00045205,120]
[358921704,1745545752042,-740.72,0.000453,60]
[358921705,1745545752084,-286.0,0.00045685,90]
[358921706,1745545752126,-800.0,0.000458,30]
[358921707,1745545752170,-740.72,0.000459,60]
[358921708,1745545752227,-200.0,0.00046,79]
[358921709,1745545752271,-1269.73,0.00046575,30]